bitfinex/quotes_SOLUSD_20230120
["timestamp","ask_amount","ask_price","bid_price","bid_amount"]
[1674209561685,18.92,21.039,21.027,35.67]
[1674209561897,42.67576951,21.039,21.027,35.67]
[1674209562322,18.92,21.039,21.027,35.67]
[1674209563475,1.92,21.039,21.029,35.67]
[1674209563672,1.92,21.039,21.03,10.0]
[1674209563895,1.92,21.039,21.031,35.67]
[1674209564120,55.39075916,21.041,21.031,35.67]
[1674209564758,55.39075916,21.041,21.032,10.0]
[1674209565068,55.39075916,21.041,21.034,10.0]
[1674209566976,1.92,21.04,21.034,10.0]
[1674209567894,18.92,21.04,21.034,10.0]
[1674209568860,1.92,21.04,21.034,10.0]
[1674209571069,35.64,21.045,21.034,10.0]
[1674209571277,23.75576951,21.046,21.034,10.0]
[1674209571995,44.83327836,21.048,21.035,35.66]
[1674209572216,44.83327836,21.048,21.036,10.0]
[1674209574208,18.92,21.047,21.036,10.0]
[1674209575274,44.83327836,21.048,21.036,10.0]
[1674209576116,48.52398582,21.049,21.036,10.0]
[1674209576510,17.96,21.048,21.036,10.0]
[1674209576716,48.52398582,21.049,21.036,10.0]
[1674209578217,18.92,21.048,21.036,10.0]
[1674209578425,72.27975533,21.049,21.036,10.0]
[1674209578621,15.28,21.05,21.036,10.0]
[1674209579041,15.28,21.05,21.037,35.65]
[1674209579249,35.63,21.049,21.036,10.0]
[1674209579471,50.91,21.05,21.036,10.0]
[1674209579667,0.96,21.049,21.036,10.0]
[1674209579877,0.96,21.048,21.036,10.0]
[1674209581057,0.96,21.048,21.038,10.0]
[1674209581373,75.39975533,21.047,21.033,114.2556]
[1674209581686,116.20398582,21.046,21.033,114.2556]
[1674209581901,174.29151999,21.046,21.033,114.2556]
[1674209582103,51.64398582,21.045,21.033,114.2556]
[1674209582311,18.92,21.044,21.033,114.2556]
[1674209582634,18.92,21.044,21.033,10.0]
[1674209584407,38.15843133,21.044,21.033,10.0]
[1674209586524,73.79843133,21.044,21.033,10.0]
[1674209586701,38.15843133,21.044,21.033,10.0]
[1674209587129,38.15843133,21.044,21.034,35.66]
[1674209587342,51.64398582,21.045,21.034,35.66]
[1674209587343,51.64398582,21.045,21.035,10.0]
[1674209590797,71.86843133,21.049,21.035,10.0]
[1674209590798,35.63,21.049,21.035,10.0]
[1674209591009,1.92,21.048,21.036,35.66]
[1674209591230,1.92,21.048,21.037,10.0]
[1674209598620,15.28,21.05,21.037,10.0]
[1674209599555,15.28,21.05,21.038,35.65]
[1674209599759,15.28,21.05,21.039,10.0]
[1674209599985,1.92,21.049,21.039,10.0]
[1674209600195,15.28,21.05,21.039,10.0]
[1674209600834,15.17063232,21.05,21.039,10.0]
[1674209601026,35.62,21.056,21.04,35.65]
[1674209601232,35.62,21.056,21.041,10.0]
[1674209601458,35.62,21.058,21.042,35.65]
[1674209601783,35.62,21.059,21.042,35.65]
[1674209602388,35.62,21.059,21.043,10.0]
[1674209602610,0.96,21.058,21.044,35.64]
[1674209602817,21.92,21.058,21.045,10.0]
[1674209603018,20.0,21.058,21.045,10.0]
[1674209603212,35.62,21.059,21.046,20.0]
[1674209603447,35.61,21.064,21.046,55.64]
[1674209603968,35.61,21.064,21.047,10.0]
[1674209604187,35.61,21.064,21.048,35.64]
[1674209604441,35.6,21.068,21.049,27.0]
[1674209604595,35.6,21.069,21.05,35.63]
[1674209604933,20.0,21.068,21.05,35.63]
[1674209605318,20.0,21.068,21.051,27.0]
[1674209605527,20.0,21.068,21.052,35.63]
[1674209605752,20.0,21.068,21.053,10.0]
[1674209605963,20.0,21.068,21.055,10.0]
[1674209606912,35.6,21.067,21.055,10.0]
[1674209607128,20.0,21.068,21.055,10.0]
[1674209607320,0.96,21.067,21.055,10.0]
[1674209608046,0.96,21.066,21.055,10.0]
[1674209608255,0.96,21.067,21.055,10.0]
[1674209608912,36.56,21.067,21.055,10.0]
[1674209609644,17.96,21.066,21.055,10.0]
[1674209609857,0.96,21.065,21.055,10.0]
[1674209610095,0.96,21.064,21.055,10.0]
[1674209610260,0.96,21.063,21.055,10.0]
[1674209610473,0.96,21.064,21.055,10.0]
[1674209610789,0.96,21.066,21.055,10.0]
[1674209610994,0.96,21.065,21.055,10.0]
[1674209611199,0.96,21.064,21.055,10.0]
[1674209611415,0.96,21.066,21.055,10.0]
[1674209611742,35.59,21.073,21.056,55.62]
[1674209611973,59.34576951,21.075,21.057,10.0]
[1674209612171,59.34576951,21.075,21.059,10.0]
[1674209612404,59.34576951,21.075,21.06,35.62]
[1674209612597,59.34576951,21.075,21.061,10.0]
[1674209613001,18.92,21.074,21.061,10.0]
[1674209613318,17.96,21.074,21.061,10.0]
[1674209614475,0.96,21.073,21.061,10.0]
[1674209614687,0.96,21.072,21.061,10.0]
[1674209614893,0.96,21.071,21.061,10.0]
[1674209615215,16.27,21.07,21.058,35.62]
[1674209615417,17.96,21.069,21.057,35.62]
[1674209615639,0.96,21.068,21.056,137.8302]
[1674209615970,0.96,21.067,21.056,137.8302]
[1674209616188,0.96,21.067,21.057,10.0]
[1674209617229,0.96,21.067,21.057,35.62]
[1674209617836,0.96,21.067,21.058,10.0]
[1674209621112,0.96,21.066,21.058,10.0]
[1674209621642,0.96,21.065,21.057,45.62]
[1674209621836,0.96,21.064,21.057,45.62]
[1674209622256,0.96,21.063,21.057,45.62]
[1674209622471,0.96,21.062,21.057,45.62]
[1674209622907,17.0,21.069,21.058,10.0]
[1674209623103,1.92,21.068,21.058,10.0]
[1674209623522,35.6,21.067,21.054,145.5499]
[1674209623842,17.96,21.066,21.054,109.9199]
[1674209624162,35.61,21.065,21.054,109.9199]
[1674209624483,17.96,21.064,21.054,109.9199]
[1674209625087,17.0,21.063,21.054,109.9199]
[1674209625433,0.96,21.062,21.054,109.9199]
[1674209625635,0.96,21.061,21.054,109.9199]
[1674209625825,0.96,21.06,21.054,109.9199]
[1674209626035,0.96,21.059,21.054,109.9199]
[1674209626244,10.96,21.064,21.054,109.9199]
[1674209626457,17.96,21.063,21.054,109.9199]
[1674209626678,0.96,21.062,21.054,109.9199]
[1674209628052,17.96,21.062,21.051,45.63]
[1674209628370,0.96,21.061,21.051,10.0]
[1674209628565,0.96,21.062,21.052,35.63]
[1674209628566,0.96,21.06,21.052,35.63]
[1674209628778,0.96,21.059,21.052,35.63]
[1674209629103,0.96,21.061,21.053,10.0]
[1674209629315,0.96,21.061,21.054,35.63]
[1674209629526,0.96,21.06,21.053,10.0]
[1674209629830,59.35576951,21.068,21.053,10.0]
[1674209630051,50.91,21.07,21.054,35.63]
[1674209630236,20.0,21.068,21.054,35.63]
[1674209630447,20.0,21.068,21.055,10.0]
[1674209630670,20.0,21.068,21.057,10.0]
[1674209631408,20.0,21.068,21.056,35.62]
[1674209631624,18.92,21.067,21.056,35.62]
[1674209632357,10.0,21.066,21.054,35.63]
[1674209632568,18.92,21.065,21.054,35.63]
[1674209635193,1.92,21.065,21.054,35.63]
[1674209636046,20.0,21.068,21.054,35.63]
[1674209636233,20.0,21.068,21.055,10.0]
[1674209636866,20.0,21.068,21.056,35.62]
[1674209637509,17.0,21.067,21.056,35.62]
[1674209637711,0.96,21.066,21.056,35.62]
[1674209637935,0.96,21.065,21.056,35.62]
[1674209638546,20.0,21.068,21.057,10.0]
[1674209640013,0.96,21.067,21.057,10.0]
[1674209640227,0.96,21.066,21.056,35.62]
[1674209640434,0.96,21.065,21.056,35.62]
[1674209641917,0.96,21.065,21.057,10.0]
[1674209642547,0.96,21.065,21.056,35.62]
[1674209642769,0.96,21.064,21.055,10.0]
[1674209642975,0.96,21.063,21.056,35.62]
[1674209643302,0.96,21.062,21.056,35.62]
[1674209643497,0.96,21.061,21.056,35.62]
[1674209643821,0.96,21.061,21.054,35.63]
[1674209643822,0.96,21.06,21.054,35.63]
[1674209644009,0.96,21.061,21.055,10.0]
[1674209644217,0.96,21.061,21.056,35.62]
[1674209644553,17.0,21.067,21.057,10.0]
[1674209644746,1.92,21.066,21.057,10.0]
[1674209645161,1.92,21.066,21.056,35.62]
[1674209645584,1.92,21.066,21.054,35.63]
[1674209645814,11.92,21.066,21.054,35.63]
[1674209646024,17.0,21.065,21.054,35.63]
[1674209646224,1.92,21.064,21.054,35.63]
[1674209646769,0.96,21.064,21.055,10.0]
[1674209647295,17.0,21.066,21.055,10.0]
[1674209647296,0.96,21.065,21.055,10.0]
[1674209648539,20.0,21.068,21.056,35.62]
[1674209648756,10.0,21.068,21.056,35.62]
[1674209649698,0.96,21.067,21.056,35.53899163]
[1674209650025,0.96,21.066,21.056,35.53899163]
[1674209650962,30.0,21.069,21.057,10.0]
[1674209651289,30.0,21.069,21.058,35.62]
[1674209652226,0.96,21.068,21.058,35.62]
[1674209652429,0.96,21.067,21.058,35.62]
[1674209653923,0.96,21.067,21.056,35.62]
[1674209654335,0.96,21.067,21.057,10.0]
[1674209654553,0.96,21.067,21.058,35.62]
[1674209655685,0.96,21.067,21.059,10.0]
[1674209656014,15.31,21.07,21.059,10.0]
[1674209656211,15.31,21.07,21.061,10.0]
[1674209656632,15.31,21.07,21.063,10.0]
[1674209657391,15.31,21.07,21.062,35.61]
[1674209658442,23.75576951,21.075,21.062,35.61]
[1674209658635,23.75576951,21.075,21.063,10.0]
[1674209658836,23.75576951,21.075,21.064,35.61]
[1674209659699,0.96,21.074,21.064,35.61]
[1674209659901,0.96,21.073,21.064,35.61]
[1674209660098,0.96,21.072,21.064,35.61]
[1674209660320,0.96,21.071,21.064,35.61]
[1674209660515,0.96,21.07,21.064,35.61]
[1674209660947,0.96,21.07,21.062,35.61]
[1674209661257,0.96,21.069,21.062,35.61]
[1674209661463,0.96,21.068,21.062,35.61]
[1674209661688,0.96,21.068,21.063,10.0]
[1674209661897,0.96,21.069,21.063,10.0]
[1674209662112,0.96,21.068,21.063,10.0]
[1674209663695,0.96,21.069,21.065,10.0]
[1674209663886,0.96,21.071,21.065,10.0]
[1674209664087,0.96,21.07,21.065,10.0]
[1674209664299,0.96,21.069,21.065,10.0]
[1674209664735,0.96,21.07,21.065,10.0]
[1674209667069,110.0967,21.086,21.065,10.0]
[1674209667261,18.92,21.075,21.065,10.0]
[1674209667465,18.92,21.075,21.067,10.0]
[1674209667669,18.92,21.075,21.066,35.61]
[1674209669453,18.92,21.075,21.065,10.0]
[1674209669884,10.0,21.074,21.062,35.61]
[1674209670098,18.92,21.073,21.061,10.0]
[1674209670744,15.24,21.07,21.06,35.62]
[1674209670925,18.92,21.069,21.058,35.62]
[1674209671147,18.92,21.069,21.059,10.0]
[1674209671348,18.92,21.069,21.06,35.62]
[1674209671691,18.92,21.069,21.061,10.0]
[1674209673662,0.96,21.069,21.061,10.0]
[1674209674725,0.96,21.069,21.06,35.62]
[1674209674931,17.96,21.069,21.06,35.62]
[1674209675469,17.96,21.069,21.061,10.0]
[1674209675808,0.96,21.068,21.061,10.0]
[1674209675998,0.96,21.067,21.061,10.0]
[1674209676312,0.96,21.066,21.061,10.0]
[1674209676616,0.96,21.065,21.061,10.0]
[1674209678318,15.24,21.07,21.061,10.0]
[1674209678517,1.92,21.069,21.061,10.0]
[1674209678710,15.24,21.07,21.061,10.0]
[1674209678929,23.75576951,21.075,21.061,10.0]
[1674209679120,23.75576951,21.075,21.062,35.61]
[1674209679330,23.75576951,21.075,21.063,10.0]
[1674209680169,18.92,21.074,21.063,10.0]
[1674209682932,18.92,21.074,21.062,35.61]
[1674209684077,10.0,21.073,21.062,35.61]
[1674209684288,18.92,21.072,21.06,35.62]
[1674209685015,15.31,21.07,21.06,35.62]
[1674209685239,18.92,21.069,21.06,35.62]
[1674209685556,18.92,21.069,21.058,35.62]
[1674209688510,18.92,21.069,21.057,45.62]
[1674209692498,17.96,21.069,21.057,45.62]
[1674209692814,15.31,21.07,21.057,45.62]
[1674209694061,18.92,21.069,21.057,45.62]
[1674209694688,1.92,21.069,21.057,45.62]
[1674209695018,51.46880536,21.072,21.057,45.62]
[1674209695211,0.96,21.071,21.059,10.0]
[1674209695425,0.96,21.071,21.06,35.62]
[1674209695636,0.96,21.071,21.061,10.0]
[1674209695838,0.96,21.071,21.063,10.0]
[1674209696178,0.96,21.07,21.063,10.0]
[1674209696588,149.42851595,21.076,21.063,10.0]
[1674209696797,33.39481595,21.076,21.063,10.0]
[1674209697216,10.0,21.078,21.063,10.0]
[1674209697431,10.0,21.078,21.064,35.61]
[1674209697764,10.0,21.078,21.065,10.0]
[1674209698159,17.96,21.077,21.065,10.0]
[1674209698387,0.96,21.077,21.065,10.0]
[1674209698705,0.96,21.076,21.065,10.0]
[1674209698925,0.96,21.075,21.065,10.0]
[1674209699127,0.96,21.074,21.065,10.0]
[1674209699870,0.96,21.074,21.067,10.0]
[1674209702498,0.96,21.074,21.066,35.61]
[1674209702680,0.96,21.073,21.064,35.61]
[1674209702894,0.96,21.072,21.064,35.61]
[1674209703210,27.0,21.078,21.065,10.0]
[1674209703431,1.92,21.077,21.065,10.0]
[1674209704395,35.58,21.083,21.066,72.61]
[1674209704720,145.6667,21.086,21.067,10.0]
[1674209704907,145.6667,21.086,21.069,10.0]
[1674209705115,10.0,21.085,21.07,35.6]
[1674209705329,10.0,21.085,21.071,10.0]
[1674209706596,0.96,21.084,21.071,10.0]
[1674209706908,35.57,21.086,21.071,10.0]
[1674209707117,10.0,21.086,21.073,10.0]
[1674209707526,35.57,21.085,21.072,35.6]
[1674209707727,45.57,21.086,21.072,35.6]
[1674209707943,45.57,21.086,21.073,10.0]
[1674209708172,45.57,21.086,21.072,35.6]
[1674209708589,10.0,21.084,21.072,35.6]
[1674209708791,18.92,21.083,21.072,35.6]
[1674209710164,18.92,21.083,21.071,10.0]
[1674209710991,17.0,21.082,21.073,10.0]
[1674209711209,1.92,21.081,21.073,10.0]
[1674209711428,0.96,21.081,21.073,10.0]
[1674209711652,0.96,21.082,21.073,10.0]
[1674209711850,0.96,21.082,21.072,35.6]
[1674209711851,0.96,21.081,21.072,35.6]
[1674209712168,0.96,21.081,21.068,35.6]
[1674209712169,15.34,21.08,21.068,35.6]
[1674209712365,15.34,21.08,21.057,46.33298641]
[1674209712366,18.92,21.079,21.066,65.61]
[1674209712571,18.92,21.079,21.066,55.61]
[1674209712782,18.92,21.079,21.066,35.61]
[1674209712783,10.0,21.077,21.066,35.61]
[1674209713008,53.55,21.076,21.062,35.61]
[1674209713225,53.55,21.076,21.057,10.0]
[1674209713226,0.96,21.075,21.06,35.62]
[1674209713444,0.96,21.074,21.06,35.62]
[1674209713739,0.96,21.073,21.061,10.0]
[1674209713956,0.96,21.072,21.061,10.0]
[1674209714168,0.96,21.071,21.061,10.0]
[1674209714386,0.96,21.07,21.061,10.0]
[1674209714573,0.96,21.069,21.061,10.0]
[1674209714916,0.96,21.068,21.061,10.0]
[1674209715099,0.96,21.067,21.061,10.0]
[1674209715303,0.96,21.066,21.061,10.0]
[1674209715722,0.96,21.065,21.06,35.62]
[1674209715940,0.96,21.064,21.06,35.62]
[1674209716890,0.96,21.064,21.058,35.62]
[1674209717517,0.96,21.063,21.058,35.62]
[1674209718897,0.96,21.064,21.058,35.62]
[1674209721204,15.29,21.07,21.058,35.62]
[1674209721403,17.96,21.069,21.058,35.62]
[1674209721843,0.96,21.069,21.058,35.62]
[1674209722029,15.29,21.07,21.058,35.62]
[1674209722238,35.59,21.074,21.058,35.62]
[1674209722458,17.0,21.073,21.058,35.62]
[1674209722659,35.59,21.074,21.058,35.62]
[1674209722890,35.58,21.079,21.061,10.0]
[1674209723212,20.0,21.078,21.063,10.0]
[1674209723420,20.0,21.078,21.065,10.0]
[1674209723613,55.58,21.079,21.065,10.0]
[1674209724775,35.58,21.079,21.066,20.0]
[1674209724986,153.1859,21.083,21.067,10.0]
[1674209725204,15.34,21.08,21.068,35.6]
[1674209725396,15.34,21.08,21.067,45.6]
[1674209726049,18.92,21.079,21.067,45.6]
[1674209726561,18.92,21.079,21.067,10.0]
[1674209728251,10.0,21.078,21.066,55.61]
[1674209728457,18.92,21.077,21.064,35.61]
[1674209728659,10.0,21.075,21.06,35.62]
[1674209728873,18.92,21.074,21.061,10.0]
[1674209730144,18.92,21.074,21.06,35.62]
[1674209730341,15.28,21.07,21.058,35.62]
[1674209730678,18.92,21.069,21.059,10.0]
[1674209730863,18.92,21.069,21.061,10.0]
[1674209731287,1.92,21.069,21.061,10.0]
[1674209733400,18.92,21.069,21.061,10.0]
[1674209737287,15.28,21.07,21.061,10.0]
[1674209737498,15.577,21.098,21.062,35.61]
[1674209737499,40.73922,21.078,21.062,35.61]
[1674209737829,40.73922,21.078,21.063,10.0]
[1674209738650,18.92,21.077,21.063,10.0]
[1674209739605,18.92,21.077,21.064,35.61]
[1674209739819,18.92,21.077,21.065,10.0]
[1674209740977,35.59,21.077,21.065,10.0]
[1674209741188,15.34,21.08,21.066,55.61]
[1674209741405,15.34,21.08,21.067,10.0]
[1674209741594,15.34,21.08,21.069,10.0]
[1674209742436,18.92,21.079,21.069,10.0]
[1674209748228,18.92,21.079,21.068,35.6]
[1674209748538,18.92,21.079,21.067,45.6]
[1674209750432,35.58,21.082,21.067,45.6]
[1674209750743,10.0,21.084,21.067,45.6]
[1674209751715,18.92,21.083,21.067,45.6]
[1674209752754,10.0,21.082,21.067,45.6]
[1674209752955,18.92,21.081,21.067,45.6]
[1674209755152,1.92,21.081,21.067,45.6]
[1674209757376,15.29,21.08,21.067,35.6]
[1674209757566,18.92,21.079,21.067,35.6]
[1674209759161,20.0,21.078,21.067,35.6]
[1674209759355,18.92,21.077,21.065,35.61]
[1674209759560,18.92,21.077,21.064,35.61]
[1674209760840,35.59,21.076,21.06,35.62]
[1674209761065,28.92,21.075,21.06,35.62]
[1674209761773,28.92,21.075,21.061,10.0]
[1674209762630,28.92,21.075,21.06,35.62]
[1674209762840,15.34,21.07,21.06,35.62]
[1674209763064,18.92,21.069,21.06,35.62]
[1674209763475,18.92,21.069,21.061,10.0]
[1674209765907,18.92,21.069,21.06,35.62]
[1674209766308,18.92,21.069,21.061,10.0]
[1674209769799,35.59,21.076,21.061,10.0]
[1674209769975,50.87,21.08,21.063,10.0]
[1674209770194,20.0,21.079,21.064,35.61]
[1674209770413,35.59,21.078,21.065,10.0]
[1674209771265,18.92,21.077,21.065,10.0]
[1674209776432,35.59,21.078,21.065,10.0]
[1674209776433,35.59,21.078,21.066,151.74356979]
[1674209776624,20.0,21.079,21.067,10.0]
[1674209776828,55.58,21.079,21.067,10.0]
[1674209777573,17.96,21.078,21.067,10.0]
[1674209777896,0.96,21.077,21.067,10.0]
[1674209780208,10.96,21.077,21.064,35.61]
[1674209780415,10.96,21.077,21.037,24.78345882]
[1674209780416,52.59,21.076,21.062,35.61]
[1674209780627,11.92,21.075,21.062,35.61]
[1674209780960,17.0,21.074,21.062,35.61]
[1674209781154,1.92,21.073,21.062,35.61]
[1674209781466,1.92,21.073,21.063,10.0]
[1674209785044,35.59,21.078,21.065,10.0]
[1674209785352,55.58,21.079,21.065,10.0]
[1674209785775,10.0,21.078,21.065,10.0]
[1674209786087,17.96,21.077,21.065,10.0]
[1674209786306,18.92,21.077,21.065,10.0]
[1674209787237,1.92,21.077,21.065,10.0]
[1674209788609,1.92,21.077,21.064,35.61]
[1674209788820,11.92,21.077,21.064,35.61]
[1674209789003,17.0,21.076,21.064,35.61]
[1674209789221,1.92,21.075,21.064,35.61]
[1674209789977,11.92,21.075,21.062,35.61]
[1674209790159,17.0,21.074,21.063,10.0]
[1674209790369,1.92,21.073,21.063,10.0]
[1674209797948,20.0,21.079,21.064,35.61]
[1674209798173,20.0,21.079,21.065,10.0]
[1674209798394,20.0,21.079,21.067,10.0]
[1674209798595,20.0,21.079,21.068,35.6]
[1674209798807,20.0,21.079,21.069,10.0]
[1674209799547,17.96,21.078,21.069,10.0]
[1674209799778,0.96,21.077,21.069,10.0]
[1674209800066,0.96,21.076,21.066,35.61]
[1674209800283,0.96,21.075,21.066,35.61]
[1674209800594,0.96,21.074,21.066,35.61]
[1674209801215,0.96,21.073,21.064,35.61]
[1674209801430,0.96,21.073,21.063,45.61]
[1674209801835,0.96,21.072,21.062,45.61]
[1674209802050,0.96,21.071,21.062,45.61]
[1674209802572,0.96,21.07,21.062,45.61]
[1674209806474,0.96,21.07,21.062,35.61]
[1674209806683,0.96,21.07,21.061,10.0]
[1674209806900,0.96,21.07,21.062,35.61]
[1674209807132,0.96,21.07,21.063,10.0]
[1674209807433,0.96,21.07,21.064,35.61]
[1674209808375,0.96,21.071,21.064,35.61]
[1674209808587,10.0,21.077,21.064,35.61]
[1674209808804,18.92,21.076,21.064,35.61]
[1674209809009,10.0,21.075,21.064,35.61]
[1674209809213,18.92,21.074,21.064,35.61]
[1674209809441,18.92,21.074,21.062,35.61]
[1674209810074,15.31,21.07,21.062,35.61]
[1674209810279,15.31,21.07,21.046,151.88777161]
[1674209810280,18.92,21.069,21.058,35.62]
[1674209810475,18.92,21.069,21.057,35.62]
[1674209810701,10.0,21.068,21.057,35.62]
[1674209810914,18.92,21.067,21.057,35.62]
[1674209811538,17.0,21.066,21.057,35.62]
[1674209811747,1.92,21.065,21.057,35.62]
[1674209811956,0.96,21.065,21.058,10.0]
[1674209812173,0.96,21.067,21.058,10.0]
[1674209812174,0.96,21.064,21.059,35.62]
[1674209812804,0.96,21.066,21.06,10.0]
[1674209813023,0.96,21.068,21.06,10.0]
[1674209813220,0.96,21.067,21.06,10.0]
[1674209814400,0.96,21.067,21.058,45.62]
[1674209815349,15.31,21.07,21.058,45.62]
[1674209815538,86.17288275,21.076,21.058,45.62]
[1674209815743,17.0,21.075,21.058,45.62]
[1674209816593,0.96,21.074,21.058,45.62]
[1674209816829,1.92,21.074,21.058,45.62]
[1674209818077,11.92,21.074,21.058,45.62]
[1674209818290,17.0,21.073,21.058,45.62]
[1674209818602,1.92,21.072,21.058,45.62]
[1674209821221,10.0,21.071,21.058,35.62]
[1674209821542,34.21,21.07,21.058,10.0]
[1674209821851,34.21,21.07,21.059,35.62]
[1674209822776,34.21,21.07,21.057,45.62]
[1674209827963,34.21,21.07,21.057,35.62]
[1674209828184,15.14922,21.069,21.055,35.62]
[1674209828500,18.92,21.068,21.056,30.0]
[1674209828702,18.92,21.068,21.058,10.0]
[1674209829425,0.96,21.068,21.058,10.0]
[1674209829754,5.14922,21.069,21.058,10.0]
[1674209829952,15.29,21.07,21.058,10.0]
[1674209831012,17.96,21.069,21.058,10.0]
[1674209831228,0.96,21.068,21.058,10.0]
[1674209834253,15.29,21.07,21.058,10.0]
[1674209834468,15.29,21.07,21.059,35.62]
[1674209834684,15.29,21.07,21.06,10.0]
[1674209834883,15.29,21.07,21.061,35.61]
[1674209835211,15.29,21.07,21.062,10.0]
[1674209835422,35.59,21.077,21.063,35.61]
[1674209835636,55.58,21.079,21.064,10.0]
[1674209835962,20.0,21.079,21.065,35.61]
[1674209836471,20.0,21.079,21.066,10.0]
[1674209836907,18.92,21.078,21.066,10.0]
[1674209837222,17.0,21.077,21.068,10.0]
[1674209837526,1.92,21.076,21.068,10.0]
[1674209837740,0.96,21.075,21.068,10.0]
[1674209837944,0.96,21.074,21.068,10.0]
[1674209838265,0.96,21.073,21.068,10.0]
[1674209838480,0.96,21.072,21.068,10.0]
[1674209838674,0.96,21.072,21.067,35.6]
[1674209839218,0.96,21.071,21.062,10.0]
[1674209839396,0.96,21.07,21.061,35.61]
[1674209839618,0.96,21.069,21.061,35.61]
[1674209840048,17.96,21.069,21.061,35.61]
[1674209840259,0.96,21.068,21.059,35.62]
[1674209841216,0.96,21.067,21.059,35.62]
[1674209841397,0.96,21.066,21.059,35.62]
[1674209841608,0.96,21.065,21.059,35.62]
[1674209842680,0.96,21.065,21.056,10.0]
[1674209842681,0.96,21.064,21.058,45.62]
[1674209844675,0.96,21.063,21.058,45.62]
[1674209845834,0.96,21.064,21.058,45.62]
[1674209858467,0.96,21.063,21.058,45.62]
[1674209860451,0.96,21.063,21.058,10.0]
[1674209860661,0.96,21.063,21.057,35.62]
[1674209860983,0.96,21.062,21.048,35.64]
[1674209861174,15.28,21.06,21.049,10.0]
[1674209861380,17.96,21.059,21.051,10.0]
[1674209861596,0.96,21.058,21.051,10.0]